Cogmind - Beta 10.2 @@@ ROGUE MODE // 2020.12.05 @ 18:08:16 Player: Vagkalis Result: Destroyed by S-27 Virus with Autogun Performance ------------- Evolutions (5) 2500 Regions Visited (11) 2200 Robots Destroyed (132) 660 Value Destroyed (5665) 5665 Prototype IDs (6) 120 Alien Tech Used (0) 0 Bonus (1936) 1936 TOTAL SCORE: 13081 Bonus ------- High Alert Combat Kills 144 Follower Combat Kills 1079 Met Zhirov 300 A7 Reached Mainframe 300 Read Decrypted Archives 300 Friendly Fire -187 Cogmind --------- Core Integrity 0/1000 Matter 272/300 Energy 420/420 System Corruption 5% Temperature Cool (0) Movement Treading (160) Location -5/Hub_04(d) Parts ------- > --- POWER (2) -------- Micro Fission Core Quantum Reactor > --- PROPULSION (3) --- Centrium Heavy Treads > --- UTILITY (10) ----- Advanced Heat Sink Advanced Heat Sink Large Storage Unit Large Storage Unit Advanced Targeting Computer Advanced Targeting Computer Centrium Medium Armor Plating Improved System Shield Advanced System Shield > --- WEAPON (2) ------- KE Penetrator Improved KE Penetrator > --- INVENTORY (16) --- Improved Treads Cryofiber Web Advanced Heat Sink Large Storage Unit High-capacity Matter Pod (200) Advanced Sensor Array Advanced Targeting Computer Medium Insulated Plating Advanced Hacking Suite Heavy Laser Variable Charge Gun Gauss Rifle Magnetic Acceleration Cannon Magnetic Acceleration Cannon Bore Cannon Peak State ------------ > --- POWER ------------ Micro Fission Core Quantum Reactor > --- PROPULSION ------- Improved Medium Treads Centrium Heavy Treads > --- UTILITY ---------- Advanced Heat Sink Advanced Heat Sink Large Storage Unit Large Storage Unit High-capacity Storage Unit Advanced Targeting Computer Advanced Targeting Computer Centrium Medium Armor Plating Improved System Shield Advanced System Shield > --- WEAPON ----------- KE Penetrator Improved KE Penetrator > --- INVENTORY -------- Improved Treads Cryofiber Web Advanced Heat Sink Large Storage Unit High-capacity Matter Pod Advanced Sensor Array Advanced Targeting Computer Medium Insulated Plating Advanced Hacking Suite Heavy Laser Variable Charge Gun Gauss Rifle Magnetic Acceleration Cannon Magnetic Acceleration Cannon Bore Cannon [Rating: 96] Favorites ----------- Power Improved Deuterium Engine Engine Improved Deuterium Engine Power Core Light Nuclear Core Reactor Quantum Reactor Propulsion Light Treads Treads Light Treads Leg Aluminum Leg Wheel Compact Wheel Utility Large Storage Unit Device Advanced Heat Sink Storage Large Storage Unit Processor Targeting Computer Hackware Advanced System Shield Protection Utility Shielding Weapon KE Penetrator Energy Gun Medium Laser Energy Cannon Advanced Plasma Cannon Ballistic Gun KE Penetrator Ballistic Cannon Mass Driver Launcher Grenade Launcher Build | -11 -10 -9 -9 -8 -7 -6 -5 -5 -5 -5 -5 ------- Run | Scr Mat Mat Min Mat Fac Fac Fac Ext Cet Arc Hub Slots Evolved 10 | . . 2 . 2 2 2 2 . . . . Power 1 | . . . . . 1 . . . . . . Propulsion 1 | . . . . 1 . . . . . . . Utility 8 | . . 2 . 1 1 2 2 . . . . Weapon . | . . . . . . . . . . . . Parts Attached 157 | 7 10 15 . 16 35 12 10 17 15 2 18 Power 25 | 1 1 3 . 2 5 2 1 4 2 1 3 Engine 17 | 1 1 3 . 1 3 2 1 3 1 . 1 Core 6 | . . . . 1 2 . . 1 1 . 1 Reactor 2 | . . . . . . . . . . 1 1 Propulsion 38 | 3 2 2 . 6 12 3 . 4 2 1 3 Treads 23 | 2 2 1 . 3 4 2 . 4 1 1 3 Leg 6 | . . . . 1 5 . . . . . . Wheel 9 | 1 . 1 . 2 3 1 . . 1 . . Hover . | . . . . . . . . . . . . Flight . | . . . . . . . . . . . . Utility 35 | 1 3 3 . 1 4 4 4 5 4 . 6 Device 13 | . 1 . . . 3 1 3 3 1 . 1 Storage 6 | 1 1 1 . . 1 . . . . . 2 Processor 7 | . . 1 . 1 . 1 . 2 . . 2 Hackware 2 | . . . . . . . 1 . 1 . . Protection 7 | . 1 1 . . . 2 . . 2 . 1 Artifact . | . . . . . . . . . . . . Weapon 59 | 2 4 7 . 7 14 3 5 4 7 . 6 Energy Gun 17 | 1 4 3 . . 2 1 2 1 1 . 2 Energy Cannon 6 | . . . . 2 2 . . 1 1 . . Ballistic Gun 25 | 1 . 2 . 3 7 1 2 2 4 . 3 Ballistic Cannon 1 | . . . . . . . . . . . 1 Launcher 10 | . . 2 . 2 3 1 1 . 1 . . Special Weapon . | . . . . . . . . . . . . Impact Weapon . | . . . . . . . . . . . . Slashing Weapon . | . . . . . . . . . . . . Piercing Weapon . | . . . . . . . . . . . . Special Melee Weapon . | . . . . . . . . . . . . Unidentified Prototypes 6 | . . 1 . . 1 . . . 3 . 1 Parts Lost 71 | . 2 3 . 7 24 3 1 12 3 6 10 Power 11 | . . 1 . 1 3 . . 2 . 2 2 Propulsion 24 | . . 1 . 4 10 1 . 3 . 1 4 Utility 11 | . . . . . 3 1 . 3 1 1 2 Weapon 25 | . 2 1 . 2 8 1 1 4 2 2 2 Highest Loss Streak 12 | . 1 1 . 5 6 1 1 12 2 6 7 Average Slot Usage (%) 93 | . 99 97 100 95 83 96 96 94 93 87 91 Engine 10 | . 13 10 11 6 8 12 11 9 10 7 1 Treads 11 | . 14 17 22 13 4 2 11 14 11 6 13 Leg 2 | . . . . . 6 15 . . . . . Wheel 4 | . 14 4 . 9 3 1 5 2 . 3 . Device 11 | . 7 . . . 14 12 19 17 17 17 15 Storage 13 | . 14 13 22 18 15 13 11 11 11 11 15 Processor 10 | . . 10 11 18 9 12 11 15 13 11 11 Hackware 2 | . . . . . . . 1 5 9 11 11 Protection 6 | . 6 18 11 9 1 11 8 1 4 3 1 Energy Gun 5 | . 13 10 11 3 2 5 4 2 . . 3 Energy Cannon 1 | . . . . 5 2 . . 2 4 . . Ballistic Gun 8 | . 14 10 11 8 8 6 4 5 5 7 5 Naked Turns . | . . . . . . . . . . . . Heaviest Build 111 | 13 27 58 58 63 86 86 88 91 91 88 111 Greatest Support 110 | 40 20 40 40 40 60 30 12 69 103 110 110 Greatest Overweight (x) 27 | . 1 2 1 4 27 6 7 7 7 7 3 Average Overweight (x) 2 | . . . 1 1 3 2 6 3 . 4 . Largest Inventory Capacity 24 | 6 10 18 18 18 18 18 18 18 18 18 24 Average Capacity 15 | 5 9 12 18 18 18 18 18 18 18 18 22 Most Carried 21 | 4 10 17 17 18 18 18 18 18 18 18 21 Average Carried 14 | 1 8 10 17 16 15 17 17 16 17 17 17 Final Capacity 18 | 6 10 18 18 18 18 18 18 18 18 18 16 Final Carried 18 | 2 10 17 17 16 18 17 17 18 18 16 15 Class Distribution -------------------- 51% | Scavenger-Mutant 44% | Mutant 3% | Hacker-Mutant Dominant Class ---------------- Mutant | -10/Materials Mutant | -9/Materials Mutant | -9/Mines Mutant | -8/Materials Scavenger-Mutant | -7/Factory Scavenger-Mutant | -6/Factory Scavenger-Mutant | -5/Factory Scavenger-Mutant | -5/Extension Scavenger-Mutant | -5/Cetus Scavenger-Mutant | -5/Archives Scavenger-Mutant | -5/Hub_04(d) Resources | -11 -10 -9 -9 -8 -7 -6 -5 -5 -5 -5 -5 ----------- Run | Scr Mat Mat Min Mat Fac Fac Fac Ext Cet Arc Hub Matter Collected 3702 | 242 322 249 . 313 645 558 168 405 318 . 482 Remotely . | . . . . . . . . . . . . Salvage Created 6033 | . 505 422 . 668 1387 324 432 779 801 114 601 Parts 266 | . 28 24 . 32 58 13 22 23 35 6 25 Haulers Intercepted 1 | . . 1 . . . . . . . . . Recyclers Shooed 4 | . . 1 . . 2 . . . . . 1 Parts Field Recycled . | . . . . . . . . . . . . Retrieved Matter . | . . . . . . . . . . . . Parts Self-Destructed . | . . . . . . . . . . . . Prevented . | . . . . . . . . . . . . Kills | -11 -10 -9 -9 -8 -7 -6 -5 -5 -5 -5 -5 ------- Run | Scr Mat Mat Min Mat Fac Fac Fac Ext Cet Arc Hub Combat Hostiles Destroyed 115 | . 11 11 . 13 30 7 5 11 13 2 12 Guns 70 | . 11 8 . 2 16 5 3 9 5 1 10 Cannons 24 | . . . . 7 7 . . . 8 . 2 AOE 19 | . . 3 . 4 7 2 2 . . 1 . Classes Destroyed 14 | . 1 4 . 2 3 . 1 1 1 . 1 Worker 11 | . . 1 . 2 6 . 1 . . . 1 Builder 1 | . . . . . . . 1 . . . . Tunneler 1 | . . . . . 1 . . . . . . Hauler 1 | . . 1 . . . . . . . . . Recycler 2 | . . . . 1 . . 1 . . . . Carrier 1 | . . . . . . . . . 1 . . Swarmer 20 | . . 3 . . 13 . . . 3 . 1 Grunt 51 | . 11 5 . 8 9 3 . 4 4 2 5 Brawler 2 | . . . . . 2 . . . . . . Duelist 1 | . . . . . . . . . . . 1 Sentry 24 | . . 3 . 4 4 3 3 6 . . 1 Hunter 8 | . . . . 1 . . 2 . 3 . 2 Programmer 7 | . . . . . 2 1 . . 2 . 2 Behemoth 1 | . . . . . . . . 1 . . . Cetus Guard 1 | . . . . . . . . . 1 . . Best Kill Streak 9 | . 2 4 . 5 9 4 5 2 4 1 3 Combat Bots Only 8 | . 2 3 . 4 8 4 3 2 3 1 3 Max Kills in Single Turn 4 | . 1 4 . 3 2 1 1 1 2 1 1 Gunslinging . | . . . . . . . . . . . . Exploded 3 | . . 3 . 2 2 1 1 . . 1 . Melee . | . . . . . . . . . . . . Uniques/NPCs Destroyed . | . . . . . . . . . . . . Combat | -11 -10 -9 -9 -8 -7 -6 -5 -5 -5 -5 -5 -------- Run | Scr Mat Mat Min Mat Fac Fac Fac Ext Cet Arc Hub Damage Taken 12855 | . 359 555 . 1381 2755 616 770 1468 971 1610 2370 Core 1916 | . 54 99 . 256 393 107 143 117 123 309 315 Absorbed by Shields 294 | . . . . . . . . . 294 . . Core Remaining (%) 72 | 100 78 . 75 53 43 87 . . . . . Volleys Fired 388 | . 32 32 . 57 98 18 19 40 38 4 50 Largest 2 | . 2 2 . 2 2 2 2 2 2 2 2 Hottest 141 | . 85 80 . 90 97 99 123 131 141 61 132 Shots Fired 738 | . 62 64 . 107 175 34 34 79 76 8 99 Gun 586 | . 62 61 . 61 140 30 28 76 37 8 83 Cannon 126 | . . . . 39 30 . . 3 38 . 16 Launcher 26 | . . 3 . 7 5 4 6 . 1 . . Special . | . . . . . . . . . . . . Kinetic 426 | . 32 30 . 54 116 18 13 49 37 8 69 Thermal 286 | . 30 31 . 46 54 12 15 30 38 . 30 Explosive 26 | . . 3 . 7 5 4 6 . 1 . . Electromagnetic . | . . . . . . . . . . . . Robot Hit Streak 34 | . 20 22 . 15 18 24 34 18 16 11 17 Robot Miss Streak 7 | . 3 2 . 4 7 1 2 2 2 3 1 Penetration Max 1 | . . . . . 1 . . 1 1 1 1 Secondary Targets 5 | . . . . . . . . 2 . . 3 Max Gunslinging Chain 1 | . . . . . . . . 1 . . 1 Shots Hit Robots 561 | . 44 54 . 70 132 26 27 66 54 4 84 Core Hits 297 | . 25 23 . 39 83 16 22 24 30 2 33 Critical Hits 27 | . 1 1 . 2 3 1 2 9 4 . 4 Critical Kills 9 | . 1 . . 1 1 . . 2 4 . . Critical Parts Destroyed 16 | . . 1 . 1 2 1 2 5 . . 4 Melee Attacks . | . . . . . . . . . . . . Impact . | . . . . . . . . . . . . Slashing . | . . . . . . . . . . . . Piercing . | . . . . . . . . . . . . Sneak Attacks . | . . . . . . . . . . . . Combat Hostiles . | . . . . . . . . . . . . Follow-up Attacks . | . . . . . . . . . . . . Damage Inflicted 14493 | . 524 1019 . 1823 3006 1012 1277 1796 1713 165 2158 Guns 9157 | . 524 698 . 648 1921 564 599 1701 663 165 1674 Cannons 2493 | . . . . 580 446 . . 95 888 . 484 Explosions 2830 | . . 321 . 595 626 448 678 . 162 . . Melee . | . . . . . . . . . . . . Ramming 13 | . . . . . 13 . . . . . . Kinetic 6968 | . 267 327 . 591 1622 337 238 1167 663 165 1591 Thermal 4682 | . 257 371 . 637 745 227 361 629 888 . 567 Explosive 2592 | . . 321 . 595 388 448 678 . 162 . . Electromagnetic 238 | . . . . . 238 . . . . . . Impact . | . . . . . . . . . . . . Slashing . | . . . . . . . . . . . . Piercing . | . . . . . . . . . . . . Highest Corruption 5 | . . . . . 3 3 . 3 3 3 5 Average Corruption 2 | . . . . . 2 2 . 2 3 3 3 Corruption Purged . | . . . . . . . . . . . . Effects 74 | . . . . . 25 5 . 9 17 3 15 Message Errors 24 | . . . . . 11 1 . 4 6 . 2 Matter Fused 15 | . . . . . 2 2 . 4 4 1 2 Heat Flow Errors 7 | . . . . . 3 1 . 1 1 . 1 Energy Discharges 9 | . . . . . 5 . . . . 1 3 Data Loss (minor) 9 | . . . . . 1 1 . . 4 . 3 Targeting Errors 9 | . . . . . 3 . . . 2 1 3 Weapon Failures 1 | . . . . . . . . . . . 1 Overload Shots . | . . . . . . . . . . . . Overflow Damage 75 | . . . . 5 21 . 24 . 25 . . Projectiles 22 | . . . . 1 18 . . . 3 . . Explosions 53 | . . . . 4 3 . 24 . 22 . . Melee . | . . . . . . . . . . . . Knockbacks 8 | . . . . . . . . . . . 8 Impact . | . . . . . . . . . . . . Kinetic 7 | . . . . . . . . . . . 7 Secondary 1 | . . . . . . . . . . . 1 Self-Inflicted Damage 157 | . . . . 14 97 . 46 . . . . Shots 6 | . . . . 1 4 . 1 . . . . Rammed 3 | . 1 . . . 2 . . . . . . Targets Rammed 3 | . 1 . . . 2 . . . . . . Kicked . | . . . . . . . . . . . . Crushed . | . . . . . . . . . . . . Highest Temperature 280 | . 69 69 . 198 280 165 36 196 212 . 124 Average Temperature 55 | . 18 27 . 53 85 43 13 33 125 . 91 Received Heat Transfer 2597 | . 192 204 . 513 621 174 36 237 53 153 414 Siege Activations . | . . . . . . . . . . . . Robots Corrupted . | . . . . . . . . . . . . Combat Hostiles . | . . . . . . . . . . . . Parts Fried 3 | . . . . . 2 . . . 1 . . Impact Corruptions . | . . . . . . . . . . . . Robots Melted 2 | . . . . . . . . 2 . . . Combat Hostiles 2 | . . . . . . . . 2 . . . Parts Melted 15 | . . 3 . . 2 . . 7 1 . 2 Heat Transferred 8499 | . 657 1036 . 1369 1258 407 555 1080 1175 . 962 Parts Sabotaged . | . . . . . . . . . . . . Parts Stolen . | . . . . . . . . . . . . Parts Stripped . | . . . . . . . . . . . . Power Chain Reactions 1 | . . . . . 1 . . . . . . Missiles Intercepted . | . . . . . . . . . . . . Alert | -11 -10 -9 -9 -8 -7 -6 -5 -5 -5 -5 -5 ------- Run | Scr Mat Mat Min Mat Fac Fac Fac Ext Cet Arc Hub Peak Influence 507 | . 255 176 40 343 496 224 182 397 507 224 233 Initial 174 | . . 5 40 15 100 164 24 88 132 174 65 Average 146 | . 48 55 40 136 313 102 62 127 368 190 105 Maximum Alert Level 2 | . 1 . . 1 2 1 . 1 2 1 1 Low Security (%) 69 | 100 94 100 100 66 15 80 100 76 5 82 95 Level 1 26 | . 5 . . 33 76 19 . 23 64 17 4 Level 2 3 | . . . . . 8 . . . 30 . . Level 3 . | . . . . . . . . . . . . Level 4 . | . . . . . . . . . . . . Level 5 . | . . . . . . . . . . . . High Security . | . . . . . . . . . . . . Max Security . | . . . . . . . . . . . . Squads Dispatched 21 | . 4 2 . 2 3 2 2 1 1 . 4 Investigation 5 | . 1 1 . . . . . 1 1 . 1 Extermination 4 | . . . . . 2 1 . . . . 1 Reinforcement 12 | . 3 1 . 2 1 1 2 . . . 2 Assault . | . . . . . . . . . . . . Garrison . | . . . . . . . . . . . . Intercept . | . . . . . . . . . . . . Construction Impeded 3 | . . . . 1 . . 1 . . . 1 Haulers Reinforced . | . . . . . . . . . . . . Stealth | -11 -10 -9 -9 -8 -7 -6 -5 -5 -5 -5 -5 --------- Run | Scr Mat Mat Min Mat Fac Fac Fac Ext Cet Arc Hub Distress Signals 15 | . 1 3 . 3 . . 2 5 1 . . Communications Jammed . | . . . . . . . . . . . . Distress Signals . | . . . . . . . . . . . . Times Spotted 250 | . 37 22 . 23 41 11 8 32 27 23 26 Peak Tracking Total 20 | . 4 6 . 7 10 3 3 6 5 20 6 Tactical Retreats 20 | . 1 3 . 5 4 . . . 3 . 4 Traps | -11 -10 -9 -9 -8 -7 -6 -5 -5 -5 -5 -5 ------- Run | Scr Mat Mat Min Mat Fac Fac Fac Ext Cet Arc Hub Traps Triggered 16 | . 2 1 . . 8 . . 4 . . 1 Indirectly 3 | . . . . . 3 . . . . . . Trap Hack Attempts . | . . . . . . . . . . . . Triggered . | . . . . . . . . . . . . Disarmed . | . . . . . . . . . . . . Reprogrammed . | . . . . . . . . . . . . Reused . | . . . . . . . . . . . . Traps Extracted . | . . . . . . . . . . . . Installed . | . . . . . . . . . . . . Triggered . | . . . . . . . . . . . . Machines | -11 -10 -9 -9 -8 -7 -6 -5 -5 -5 -5 -5 ---------- Run | Scr Mat Mat Min Mat Fac Fac Fac Ext Cet Arc Hub Machines Disabled 17 | . 1 . . . 7 1 . . 6 1 1 Max in Single Turn 4 | . 1 . . . 4 1 . . 1 1 1 Machines Sabotaged . | . . . . . . . . . . . . Garrisons Compromised . | . . . . . . . . . . . . Overloaded Fab Kills . | . . . . . . . . . . . . Fab Network Shutdowns . | . . . . . . . . . . . . Hacking | -11 -10 -9 -9 -8 -7 -6 -5 -5 -5 -5 -5 --------- Run | Scr Mat Mat Min Mat Fac Fac Fac Ext Cet Arc Hub Machines Accessed 24 | . 1 5 . . 2 1 2 8 3 1 1 Terminals 22 | . 1 5 . . 1 1 2 8 3 . 1 Fabricators 1 | . . . . . 1 . . . . . . Repair Stations . | . . . . . . . . . . . . Recycling Units . | . . . . . . . . . . . . Scanalyzers . | . . . . . . . . . . . . Garrison Access . | . . . . . . . . . . . . Total Hacks 91 | . 1 7 . . 3 3 10 19 18 25 5 Successful 52 | . 1 6 . . 1 1 5 9 3 25 1 Failed 39 | . . 1 . . 2 2 5 10 15 . 4 Catastrophic 14 | . . . . . 1 1 2 4 4 . 2 Database Lockouts . | . . . . . . . . . . . . Manual 7 | . . . . . . . . . 4 . 3 Terminals 65 | . 1 7 . . 2 3 10 19 18 . 5 Fabricators 1 | . . . . . 1 . . . . . . Repair Stations . | . . . . . . . . . . . . Recycling Units . | . . . . . . . . . . . . Scanalyzers . | . . . . . . . . . . . . Garrison Access . | . . . . . . . . . . . . Terminal Hacks 52 | . 1 6 . . 1 1 5 9 3 25 1 Record 35 | . . 1 . . . . 3 3 2 25 1 Robot Analysis 1 | . . . . . . . 1 . . . . Open Door 3 | . . . . . . . . 2 1 . . Branch Access Points 1 | . . . . . . . 1 . . . . Emergency Access Points 1 | . 1 . . . . . . . . . . Alert Level 3 | . . 1 . . 1 . . 1 . . . Unreport Threat 1 | . . . . . . 1 . . . . . Locate Traps 1 | . . . . . . . . 1 . . . Patrol Status 1 | . . 1 . . . . . . . . . Registered Prototypes 1 | . . 1 . . . . . . . . . Zone Layout 4 | . . 2 . . . . . 2 . . . Fabricator Hacks . | . . . . . . . . . . . . Repair Station Hacks . | . . . . . . . . . . . . Recycling Unit Hacks . | . . . . . . . . . . . . Scanalyzer . | . . . . . . . . . . . . Garrison Access Hacks . | . . . . . . . . . . . . Unauthorized Hacks . | . . . . . . . . . . . . Terminals . | . . . . . . . . . . . . Fabricators . | . . . . . . . . . . . . Repair Stations . | . . . . . . . . . . . . Recycling Units . | . . . . . . . . . . . . Scanalyzers . | . . . . . . . . . . . . Garrison Access . | . . . . . . . . . . . . Data Cores Recovered 1 | . . . . . . . . 1 . . . Used . | . . . . . . . . . . . . Hacking Detections 18 | . . 3 . . 2 1 2 6 3 . 1 Full Trace Events 3 | . . . . . . . . 1 1 . 1 Feedback Events . | . . . . . . . . . . . . Feedback Blocked . | . . . . . . . . . . . . Robot Schematics Acquired . | . . . . . . . . . . . . Robots Built . | . . . . . . . . . . . . Matter . | . . . . . . . . . . . . Time . | . . . . . . . . . . . . Total Robot Build Rating . | . . . . . . . . . . . . Part Schematics Acquired . | . . . . . . . . . . . . Parts Built . | . . . . . . . . . . . . Matter . | . . . . . . . . . . . . Time . | . . . . . . . . . . . . Total Part Build Rating . | . . . . . . . . . . . . Parts Repaired . | . . . . . . . . . . . . Time . | . . . . . . . . . . . . Parts Recycled . | . . . . . . . . . . . . Recycled Matter . | . . . . . . . . . . . . Retrieved Matter . | . . . . . . . . . . . . Retrieved Components . | . . . . . . . . . . . . Parts Scanalyzed . | . . . . . . . . . . . . Part Schematics Acquired . | . . . . . . . . . . . . Parts Damaged . | . . . . . . . . . . . . Bothacking | -11 -10 -9 -9 -8 -7 -6 -5 -5 -5 -5 -5 ------------ Run | Scr Mat Mat Min Mat Fac Fac Fac Ext Cet Arc Hub Used RIF Installer . | . . . . . . . . . . . . Robots Hacked . | . . . . . . . . . . . . Non-combat . | . . . . . . . . . . . . Combat . | . . . . . . . . . . . . Robot Hacks Applied . | . . . . . . . . . . . . Relay Couplers Released . | . . . . . . . . . . . . Robots Rewired 17 | . . . . . . . . 17 . . . Allies Hacked . | . . . . . . . . . . . . Hacks Repelled 1 | . . . . . . . . . 1 . . Allies | -11 -10 -9 -9 -8 -7 -6 -5 -5 -5 -5 -5 -------- Run | Scr Mat Mat Min Mat Fac Fac Fac Ext Cet Arc Hub Total Allies 22 | . . . 3 . . . . 19 . . . Largest Group 7 | . . . 3 3 . . . 7 6 . . Highest-Rated Group 296 | . . . 40 40 . . . 296 296 . . Highest-Rated Ally 156 | . . . 16 16 . . . 156 156 . . Total Orders 6 | . . . . . . . . 6 . . . STAY 3 | . . . . . . . . 3 . . . FOLLOW 3 | . . . . . . . . 3 . . . Ally Attacks 240 | . . . . 30 . . . 150 60 . . Total Damage 4957 | . . . . 331 . . . 3316 1310 . . Kills 33 | . . . . 1 . . . 23 9 . . Allies Corrupted . | . . . . . . . . . . . . Allies Melted 1 | . . . . . . . . . 1 . . Intel | -11 -10 -9 -9 -8 -7 -6 -5 -5 -5 -5 -5 ------- Run | Scr Mat Mat Min Mat Fac Fac Fac Ext Cet Arc Hub Robot Analysis Total 1 | . . . . . . . 1 . . . . Derelict Logs Recovered . | . . . . . . . . . . . . Drone Launches . | . . . . . . . . . . . . Drone Recoveries . | . . . . . . . . . . . . Exploration | -11 -10 -9 -9 -8 -7 -6 -5 -5 -5 -5 -5 ------------- Run | Scr Mat Mat Min Mat Fac Fac Fac Ext Cet Arc Hub Turns Passed 11498 | 122 1938 1439 148 516 1856 1236 589 1830 958 145 721 Spaces Moved 5629 | 87 1141 757 83 192 818 619 323 846 387 82 294 Core 16 | 10 . . . . 6 . . . . . . Treads 3127 | 41 731 658 83 122 273 . . 526 369 30 294 Legs 675 | . . . . . 196 479 . . . . . Wheels 1811 | 36 410 99 . 70 343 140 323 320 18 52 . Hover . | . . . . . . . . . . . . Flight . | . . . . . . . . . . . . Fastest Speed 50 | 50 100 100 180 115 110 150 150 140 160 160 160 Average Speed 165 | 122 153 163 180 160 182 175 159 172 161 160 165 Slowest Speed 1400 | 160 180 180 180 185 1400 240 160 220 180 160 220 Overloaded Moves . | . . . . . . . . . . . . Propulsion Burnouts . | . . . . . . . . . . . . Robots Hopped . | . . . . . . . . . . . . Cave-ins Triggered . | . . . . . . . . . . . . Exploration Rate (%) 43 | 5 97 49 21 19 22 18 8 87 83 84 30 Regions Visited 11 Branch Regions 5 Pre-discovered Areas . | . . . . . . . . . . . . Known Exits Taken 1 | . . . . . . . 1 . . . . Unknown Exits Taken 10 | 1 1 1 1 1 1 1 . 1 1 1 . Scrap Searched . | . . . . . . . . . . . . Spaces Dug . | . . . . . . . . . . . . Terrain Destroyed 212 | . . 23 . 49 24 31 47 6 26 . 6 Melee . | . . . . . . . . . . . . Projectile 23 | . . . . . 1 3 1 6 6 . 6 AOE 189 | . . 23 . 49 23 28 46 . 20 . . Terrain Rammed . | . . . . . . . . . . . . Walls Destroyed . | . . . . . . . . . . . . Machines Disabled . | . . . . . . . . . . . . Actions | -11 -10 -9 -9 -8 -7 -6 -5 -5 -5 -5 -5 --------- Run | Scr Mat Mat Min Mat Fac Fac Fac Ext Cet Arc Hub Total 7126 | 102 1268 897 82 299 1052 746 371 1150 644 88 427 Wait 627 | . 68 70 . 20 42 78 8 107 187 . 47 Move 5619 | 86 1141 756 82 191 817 618 322 845 386 81 294 Hop . | . . . . . . . . . . . . Pick Up 136 | 8 13 16 . 11 32 10 6 17 7 . 16 Fast Attach 22 | . 3 2 . . 4 3 3 1 6 . . Attach 90 | 7 4 6 . 10 23 5 3 13 3 2 14 Detach 1 | 1 . . . . . . . . . . . Swap 45 | . 3 7 . 6 8 4 4 3 6 . 4 Drop 61 | . 4 8 . 4 10 10 6 6 11 . 2 Fire 388 | . 32 32 . 57 98 18 19 40 38 4 50 Melee . | . . . . . . . . . . . . Ram . | . . . . . . . . . . . . Kick . | . . . . . . . . . . . . Crush 2 | . . . . . 2 . . . . . . Escape Stasis 24 | . . . . . 16 . . 8 . . . Rewire 111 | . . . . . . . . 110 . 1 . Trap . | . . . . . . . . . . . . Miscellaneous . | . . . . . . . . . . . . Route ------- -11/Scrapyard -10/Materials (discovered 4 exits: *Mat x3 / [*Min]) -9/Materials (discovered 3 exits: [*Mat x2] / [*Min]) -9/Mines -8/Materials -7/Factory -6/Factory -5/Factory (discovered 4 exits: Upp x2 / *Ext x2) -5/Extension (discovered 2 exits: [*Fac] / *Cet) -5/Cetus (discovered 2 exits: [*Fac] / *Arc) -5/Archives -5/Hub_04(d) (discovered 1 exit: [*Fac]) History --------- Turn | Location | Event 5 | -11/Scrapyard | Discovered new exit (range 16) 123 | -11/Scrapyard | Entered Materials 268 | -10/Materials | Discovered new exit (range 10) 326 | -10/Materials | Build established: Mutant 488 | -10/Materials | Discovered new exit (range 13) 716 | -10/Materials | Discovered new exit (range 7) 919 | -10/Materials | Discovered new exit (range 14) 2061 | -10/Materials | Entered another Materials area 2061 | -9/Materials | Evolved 2 slots: Utility x2 2597 | -9/Materials | Discovered new exit (range 15) 2959 | -9/Materials | Discovered new exit (range 9) 2988 | -9/Materials | Discovered new exit (range 16) 3500 | -9/Materials | Entered Mines 3623 | -9/Mines | Discovered new exit (range 8) 3637 | -9/Mines | Assisted by bots powering up and referring to "LRC-V3" 3648 | -9/Mines | Entered Materials 3648 | -8/Materials | Accompanied by 3 allies 3648 | -8/Materials | Evolved 2 slots: Propulsion x1, Utility x1 4067 | -8/Materials | Lost 5 parts (1p2n2w) 4128 | -8/Materials | Discovered new exit (range 17) 4164 | -8/Materials | Entered Factory 4164 | -7/Factory | Evolved 2 slots: Power x1, Utility x1 4316 | -7/Factory | Lost 3 parts (2n1w) 4604 | -7/Factory | Lost 4 parts (1p1n2w) 4606 | -7/Factory | Destroyed 8 combat bots 4654 | -7/Factory | Lost 6 parts (2p2n1u1w) 4923 | -7/Factory | Lost 3 parts (1n2w) 5243 | -7/Factory | Build established: Scavenger-Mutant 5283 | -7/Factory | Lost 4 parts (2n1u1w) 5318 | -7/Factory | Core integrity fell below 50% 5998 | -7/Factory | Discovered new exit (range 8) 6020 | -7/Factory | Entered another Factory area 6020 | -6/Factory | Evolved 2 slots: Utility x2 7246 | -6/Factory | Discovered new exit (range 8) 7256 | -6/Factory | Entered another Factory area 7256 | -5/Factory | Evolved 2 slots: Utility x2 7313 | -5/Factory | Build established: Mutant 7702 | -5/Factory | Build established: Scavenger-Mutant 7706 | -5/Factory | Identified exit to Upper Caves 7706 | -5/Factory | Identified exit to Extension 7845 | -5/Factory | Entered Extension 8526 | -5/Extension | Spotted B-75 Beast 8583 | -5/Extension | Spotted B-75 Beast 8610 | -5/Extension | Allies destroyed B-75 Beast 8625 | -5/Extension | Destroyed B-75 Beast 8672 | -5/Extension | Lost 12 parts (2p3n3u4w) 9003 | -5/Extension | Rescued A7 9423 | -5/Extension | Rescued a captive Derelict 9656 | -5/Extension | Discovered new exit (range 10) 9658 | -5/Extension | Discovered new exit (range 6) 9675 | -5/Extension | Entered Cetus 9675 | -5/Cetus | Accompanied by 6 allies (A7) 9680 | -5/Cetus | Acquired a Cetus Manufacturing Module code from A7 9699 | -5/Cetus | Spotted Cetus Guard 9699 | -5/Cetus | Spotted Cetus Guard 9700 | -5/Cetus | Spotted Cetus Guard 9700 | -5/Cetus | Spotted Cetus Guard 9710 | -5/Cetus | Allies destroyed Cetus Guard 9720 | -5/Cetus | Allies destroyed Cetus Guard 9725 | -5/Cetus | Allies destroyed Cetus Guard 9729 | -5/Cetus | Destroyed Cetus Guard 9800 | -5/Cetus | Cetus Manufacturing Module disabled 9860 | -5/Cetus | Discovered new exit (range 17) 10174 | -5/Cetus | Failed to start Cetus Manufacturing Module 10191 | -5/Cetus | Escorted A7 to Cetus Mainframe 10564 | -5/Cetus | Extracted ID and sensor layout for unrecognized location from A7's data core 10607 | -5/Cetus | Discovered new exit (range 16) 10633 | -5/Cetus | Entered Archives 10659 | -5/Archives | Met Zhirov 10665 | -5/Archives | Reinforcements dispatched to Archives 10689 | -5/Archives | Read partially decrypted archive contents 10710 | -5/Archives | Reinforcements dispatched to Archives 10712 | -5/Archives | Zhirov warped through subspace 10715 | -5/Archives | Discovered new exit (range 16) 10730 | -5/Archives | Zhirov detonated Archives 10731 | -5/Archives | Core integrity fell below 50% 10761 | -5/Archives | Lost 6 parts (2p1n1u2w) 10778 | -5/Archives | Entered Hub_04(d) 11061 | -5/Hub_04(d) | Build established: Hacker-Mutant 11252 | -5/Hub_04(d) | Core integrity fell below 20% 11304 | -5/Hub_04(d) | Lost 7 parts (2p2n1u2w) 11490 | -5/Hub_04(d) | Discovered new exit (range 14) 11499 | -5/Hub_04(d) | Destroyed by S-27 Virus with Autogun Last Messages --------------- K-01 Serf collects debris. Imp. Medium Treads destroyed. L-41 Fighter suffers critical hit. Destroyed Carbon-fiber Leg. Slug penetrates L-41 Fighter. L-41 Fighter destroyed. Switching to secondary target: G-50 Soldier. Slug penetrates G-50 Soldier. G-50 Soldier destroyed. Slug penetrates Wall. R-10 Processor collects Lgt. Angular Momentum Engine. C-30 ARC bursts open, deploying its payload. S-27 Virus unfolds itself. K-01 Serf collects debris. Acquired 67 matter. K-01 Serf collects debris. R-10 Processor collects VTOL Module. EXIT=FOUND Slug penetrates Wall. Hcp. Storage Unit destroyed. Map ----- +----------------------------------------------------+ | | | | | | | | | | | | | | | | | | | | | | | ?????????????????????????????????????????????????? | | ?????????????????????????????????????????????????? | | ?????????????????????????????????????????????????? | | ?????????????????????????????????????????????????? | | ?????????????????????????????????????????????????? | | ?????????????????????????????????????????????????? | | ???????????????#?????????????????????????????????? | | ???????????????# ????????????????????????????????? | | ???????????????# ???????????????????????????????? | | ???????????????# ???????????????????????????????? | | ???????????????? ??????????????????????????????? | | ????????????????? ?????????????????????????????? | | ?????????????????? ????????????????????????????? | | ???????+##+#########;###############?????????????? | | ?????? @ #????????????? | | ?????? s < #????????????? | | ?????? s s s #????????????? | | ?????????###########+#########+######????????????? | | ????????????????# * #????? ??????????????### | | ??????????? ! %""" #??????? ????????????# | | ?????????#"" "% #???????? #???????????# | | ?????????#%"" # """ / ??????????????####### | | ??????? +""T # # ?????????????# # | | ?????????# "" ?# """ #? ???????????# # | | ?????????? "" ??# #?? ??????????# + | | ?????????? ???# """ #??? ?????????# # | | ?????????###????"= #????###????????# # | | ????????????????########+#???????????????## ## | | ???????????????????????# #????????????????# ## | | ???????????????????????# #????????????????# ## | | ???????????????????????# #?????????######## #### | | ??????????????????????## ########### ## #??? | | ??????????????????????# = #### | | ??????????????????????# % =[ | | ??????????????????????# ! | | ??????????????????????###### ##### ####### | | ??????????????????????????## ##??#######?????# | | ??????????????????????????# #????##??#######+# | | ??????????????????????????# #??????? ## | +----------------------------------------------------+ Best States ------------- Heat Dissipation 97 Energy Generation 38 Energy Capacity 480 Matter Stores 300 Matter Capacity 300 Sight Range 18 Terrain Scan Density 10 EM Shielding 2 Armor Coverage 225 Propulsion Shielding 33 Utility Shielding 66 Weapon Cycling 15 Evasion (%) 40 Targeting Accuracy 19 Recoil Reduction 3 Defensive Hacking 26 Item Schematics ----------------- None Robot Schematics ------------------ None Fabricated ------------ Nothing Alien Tech Used ----------------- None Achievements -------------- None Challenges ------------ None Game ------ Seed PoweredVisualSource Manual? 0 Play Time 01:34:02 Cumulative 45.4 hours Start 2020.12.05 @ 15:30:16 End 2020.12.05 @ 18:08:16 Sessions 1 Manual Loads 0 Difficulty Rogue Special Mode None Game No. 67 Rogue 67 Adventurer 0 Explorer 0 Win Type - Total 1 Types 1/0/0/0/0/0/0/0/0 Lore% 48 Gallery% 47 Achievement% 37 Wizard Run 0 Options --------- ASCII 0 Keyboard 0 Movement Arrows Keybinds 0 Fullscreen 2 Font 14/X11 Map View 72x54 Tactical HUD 0 Map Filters NONE Filters NONE Steam 1 RUN: 1852d302-9ea0-4a1b-9ed1-3086bf8757d8